[Event "*** SCC Grand Prix: Titled Tuesday Blitz"]
[Site "Chess.com"]
[Date "2020.08.25"]
[Round "10"]
[White "MomchilPetkov"]
[Black "londonkid"]
[Result "1-0"]
[WhiteElo "2560"]
[BlackElo "2457"]
[TimeControl "180+1"]
[EndTime "11:57:23 PDT"]
[Termination "MomchilPetkov won by resignation"]

1. e4 {[%clk 0:03:00.9]} 1... e6 {[%clk 0:02:59.5]} 2. d4 {[%clk 0:03:00.8]}
2... d5 {[%clk 0:03:00.1]} 3. Nc3 {[%clk 0:03:00.8]} 3... Nf6 {[%clk 0:03:00.2]}
4. e5 {[%clk 0:03:01.1]} 4... Nfd7 {[%clk 0:03:00.6]} 5. f4 {[%clk 0:03:01.7]}
5... c5 {[%clk 0:03:01.3]} 6. Nf3 {[%clk 0:03:02.4]} 6... Nc6 {[%clk 0:03:01.7]}
7. Be3 {[%clk 0:03:03.1]} 7... a6 {[%clk 0:03:01.5]} 8. Be2 {[%clk 0:03:01.3]}
8... b5 {[%clk 0:03:01.6]} 9. O-O {[%clk 0:03:01.4]} 9... Be7 {[%clk 0:03:02]}
10. a3 {[%clk 0:02:58.1]} 10... O-O {[%clk 0:03:00.2]} 11. Qe1 {[%clk
0:02:51.7]} 11... Qc7 {[%clk 0:02:50.1]} 12. Qg3 {[%clk 0:02:41.2]} 12... cxd4
{[%clk 0:02:44.8]} 13. Nxd4 {[%clk 0:02:41]} 13... Nxd4 {[%clk 0:02:45]} 14.
Bxd4 {[%clk 0:02:41.3]} 14... Bc5 {[%clk 0:02:45.4]} 15. Rad1 {[%clk 0:02:38.9]}
15... Bxd4+ {[%clk 0:02:43.9]} 16. Rxd4 {[%clk 0:02:39.8]} 16... Qb6 {[%clk
0:02:41.7]} 17. Rd1 {[%clk 0:02:39.1]} 17... Bb7 {[%clk 0:02:34.6]} 18. Kh1
{[%clk 0:02:39.1]} 18... Rac8 {[%clk 0:02:33.4]} 19. h4 {[%clk 0:02:21]} 19...
h6 {[%clk 0:02:22.5]} 20. h5 {[%clk 0:02:18.9]} 20... Rc5 {[%clk 0:02:22.2]} 21.
R4d2 {[%clk 0:02:07.8]} 21... b4 {[%clk 0:02:17.9]} 22. axb4 {[%clk 0:02:07.2]}
22... Qxb4 {[%clk 0:02:17.7]} 23. Bd3 {[%clk 0:02:08.1]} 23... Qxb2 {[%clk
0:02:11.4]} 24. Ne2 {[%clk 0:02:08.5]} 24... Qb6 {[%clk 0:02:05.3]} 25. f5
{[%clk 0:02:01.5]} 25... exf5 {[%clk 0:02:01.3]} 26. Nd4 {[%clk 0:01:59]} 26...
Qc7 {[%clk 0:01:41.3]} 27. Re2 {[%clk 0:01:54.9]} 27... Qd8 {[%clk 0:01:29.9]}
28. e6 {[%clk 0:01:48.4]} 28... fxe6 {[%clk 0:01:30]} 29. Nxe6 {[%clk
0:01:48.3]} 29... Qe7 {[%clk 0:01:29.8]} 30. Nxf8 {[%clk 0:01:39.5]} 30... Qxf8
{[%clk 0:01:29.9]} 31. Rde1 {[%clk 0:01:38.5]} 31... Rc8 {[%clk 0:01:22.6]} 32.
Re7 {[%clk 0:01:35.9]} 32... Nc5 {[%clk 0:01:11.9]} 33. Bxf5 {[%clk 0:01:30.7]}
33... Ne4 {[%clk 0:01:10.9]} 34. Bxe4 {[%clk 0:01:27.9]} 34... Qxe7 {[%clk
0:01:10]} 35. Bh7+ {[%clk 0:01:27.4]} 35... Kxh7 {[%clk 0:01:10.4]} 36. Rxe7
{[%clk 0:01:27.6]} 1-0

[Event "*** SCC Grand Prix: Titled Tuesday Blitz"]
[Site "Chess.com"]
[Date "2020.08.25"]
[Round "10"]
[White "isainz"]
[Black "Fortitudine"]
[Result "0-1"]
[WhiteElo "2120"]
[BlackElo "2238"]
[TimeControl "180+1"]
[EndTime "11:57:24 PDT"]
[Termination "Fortitudine won by resignation"]

1. e4 {[%clk 0:03:00.9]} 1... c5 {[%clk 0:02:55.9]} 2. Nf3 {[%clk 0:02:59.7]}
2... d6 {[%clk 0:02:55.9]} 3. d4 {[%clk 0:03:00]} 3... cxd4 {[%clk 0:02:56.8]}
4. Qxd4 {[%clk 0:02:59.7]} 4... Bd7 {[%clk 0:02:55]} 5. c4 {[%clk 0:02:58.7]}
5... Nc6 {[%clk 0:02:54.7]} 6. Qe3 {[%clk 0:02:57.7]} 6... g6 {[%clk 0:02:54.2]}
7. Nc3 {[%clk 0:02:57.4]} 7... Bh6 {[%clk 0:02:54.1]} 8. Qd3 {[%clk 0:02:46.3]}
8... Bxc1 {[%clk 0:02:53.7]} 9. Rxc1 {[%clk 0:02:46.8]} 9... Nf6 {[%clk
0:02:54.2]} 10. h3 {[%clk 0:02:44.8]} 10... O-O {[%clk 0:02:52.7]} 11. Be2
{[%clk 0:02:44.5]} 11... Qa5 {[%clk 0:02:49.1]} 12. O-O {[%clk 0:02:39.9]} 12...
Rac8 {[%clk 0:02:44.4]} 13. b3 {[%clk 0:02:39.3]} 13... a6 {[%clk 0:02:33]} 14.
Rfd1 {[%clk 0:02:23.9]} 14... Ne5 {[%clk 0:02:30.6]} 15. Nxe5 {[%clk 0:02:20.4]}
15... Qxe5 {[%clk 0:02:31.5]} 16. a4 {[%clk 0:02:08.6]} 16... Bc6 {[%clk
0:02:26.9]} 17. f3 {[%clk 0:02:04.3]} 17... Nh5 {[%clk 0:02:21.8]} 18. Qe3
{[%clk 0:01:59.8]} 18... Nf4 {[%clk 0:02:04.5]} 19. Nd5 {[%clk 0:01:53]} 19...
Bxd5 {[%clk 0:02:02.6]} 20. cxd5 {[%clk 0:01:50.3]} 20... Rxc1 {[%clk
0:01:51.7]} 21. Rxc1 {[%clk 0:01:49.6]} 21... Nxd5 {[%clk 0:01:24.6]} 22. Qa7
{[%clk 0:01:29]} 22... Nf4 {[%clk 0:01:18.8]} 23. Bf1 {[%clk 0:01:28.8]} 23...
Qg5 {[%clk 0:01:12.9]} 24. Kf2 {[%clk 0:01:17.6]} 24... Nxh3+ {[%clk 0:01:07.1]}
25. gxh3 {[%clk 0:01:14.4]} 25... Qxc1 {[%clk 0:01:06.6]} 0-1

[Event "*** SCC Grand Prix: Titled Tuesday Blitz"]
[Site "Chess.com"]
[Date "2020.08.25"]
[Round "10"]
[White "Flawless_Fighter"]
[Black "varacalli"]
[Result "1-0"]
[WhiteElo "2562"]
[BlackElo "2398"]
[TimeControl "180+1"]
[EndTime "11:57:32 PDT"]
[Termination "Flawless_Fighter won by checkmate"]

1. e4 {[%clk 0:03:00.9]} 1... e5 {[%clk 0:02:59.6]} 2. Nf3 {[%clk 0:03:00.4]}
2... Nc6 {[%clk 0:02:59.2]} 3. Bb5 {[%clk 0:03:00]} 3... a6 {[%clk 0:02:58.5]}
4. Ba4 {[%clk 0:03:00]} 4... Nf6 {[%clk 0:02:57.9]} 5. O-O {[%clk 0:03:00.2]}
5... Be7 {[%clk 0:02:56.7]} 6. Re1 {[%clk 0:02:59.9]} 6... b5 {[%clk 0:02:56.3]}
7. Bb3 {[%clk 0:03:00.3]} 7... d6 {[%clk 0:02:57.2]} 8. h3 {[%clk 0:02:59.8]}
8... Na5 {[%clk 0:02:56.3]} 9. d3 {[%clk 0:02:56.2]} 9... Nxb3 {[%clk
0:02:56.1]} 10. axb3 {[%clk 0:02:57.1]} 10... Bb7 {[%clk 0:02:56]} 11. c4 {[%clk
0:02:52.9]} 11... O-O {[%clk 0:02:52.2]} 12. Nc3 {[%clk 0:02:53.2]} 12... b4
{[%clk 0:02:45.9]} 13. Nd5 {[%clk 0:02:50.7]} 13... c5 {[%clk 0:02:44.5]} 14.
Nxe7+ {[%clk 0:02:25.4]} 14... Qxe7 {[%clk 0:02:43.5]} 15. Nh4 {[%clk
0:02:20.5]} 15... Bc8 {[%clk 0:02:41]} 16. Qf3 {[%clk 0:02:06.1]} 16... Ne8
{[%clk 0:02:31.6]} 17. Nf5 {[%clk 0:01:57]} 17... Bxf5 {[%clk 0:02:31]} 18. exf5
{[%clk 0:01:57]} 18... Nf6 {[%clk 0:02:27.5]} 19. g4 {[%clk 0:01:56.6]} 19...
Qc7 {[%clk 0:02:13.1]} 20. g5 {[%clk 0:01:54.9]} 20... Nd7 {[%clk 0:02:13.2]}
21. Re4 {[%clk 0:01:44.8]} 21... Qc6 {[%clk 0:02:12]} 22. Qh5 {[%clk 0:01:21.3]}
22... Kh8 {[%clk 0:01:39.2]} 23. Rh4 {[%clk 0:01:13.4]} 23... h6 {[%clk
0:01:36.2]} 24. f6 {[%clk 0:00:56.8]} 24... Rg8 {[%clk 0:01:31]} 25. fxg7+
{[%clk 0:00:51.6]} 25... Rxg7 {[%clk 0:01:29.9]} 26. Qxh6+ {[%clk 0:00:51.3]}
26... Kg8 {[%clk 0:01:30.6]} 27. Qh8# {[%clk 0:00:45.7]} 1-0

[Event "*** SCC Grand Prix: Titled Tuesday Blitz"]
[Site "Chess.com"]
[Date "2020.08.25"]
[Round "10"]
[White "The_Chess_Coach"]
[Black "StellarChessPro"]
[Result "0-1"]
[WhiteElo "2236"]
[BlackElo "2500"]
[TimeControl "180+1"]
[EndTime "11:57:44 PDT"]
[Termination "StellarChessPro won by resignation"]

1. d4 {[%clk 0:03:00.9]} 1... b6 {[%clk 0:02:59.8]} 2. c4 {[%clk 0:02:58.3]}
2... Bb7 {[%clk 0:03:00.7]} 3. Nc3 {[%clk 0:02:58.7]} 3... Nf6 {[%clk
0:03:00.6]} 4. d5 {[%clk 0:02:59.3]} 4... e6 {[%clk 0:03:00.7]} 5. e4 {[%clk
0:02:59.7]} 5... exd5 {[%clk 0:03:01.3]} 6. exd5 {[%clk 0:02:56.1]} 6... Bc5
{[%clk 0:03:00.4]} 7. Bd3 {[%clk 0:02:54.5]} 7... O-O {[%clk 0:03:01]} 8. Nge2
{[%clk 0:02:53.6]} 8... c6 {[%clk 0:03:00.9]} 9. O-O {[%clk 0:02:49.4]} 9...
cxd5 {[%clk 0:03:00.5]} 10. cxd5 {[%clk 0:02:50.3]} 10... h6 {[%clk 0:03:01.2]}
11. Bc2 {[%clk 0:02:45.7]} 11... Re8 {[%clk 0:03:00.2]} 12. Ng3 {[%clk
0:02:43.7]} 12... Na6 {[%clk 0:02:55.1]} 13. a3 {[%clk 0:02:31.2]} 13... Rc8
{[%clk 0:02:52.5]} 14. Qd3 {[%clk 0:02:09.8]} 14... Bf8 {[%clk 0:02:48.2]} 15.
Nh5 {[%clk 0:02:04]} 15... g6 {[%clk 0:02:47.4]} 16. Nf4 {[%clk 0:02:02.6]}
16... Nc5 {[%clk 0:02:44.4]} 17. Qg3 {[%clk 0:01:57.7]} 17... Bg7 {[%clk
0:02:36.3]} 18. Be3 {[%clk 0:01:39.5]} 18... g5 {[%clk 0:02:36.2]} 19. Nfe2
{[%clk 0:01:21.2]} 19... Nxd5 {[%clk 0:02:34.1]} 20. Bd4 {[%clk 0:01:20.3]}
20... Nxc3 {[%clk 0:02:27.5]} 21. Qxc3 {[%clk 0:01:11.2]} 21... Rxe2 {[%clk
0:01:38.2]} 22. Bxg7 {[%clk 0:00:46.5]} 22... Rxc2 {[%clk 0:01:34.5]} 23. Qxc2
{[%clk 0:00:41.2]} 23... Kxg7 {[%clk 0:01:35.1]} 24. Rad1 {[%clk 0:00:35.3]}
24... d5 {[%clk 0:01:30.8]} 25. Qc3+ {[%clk 0:00:33]} 25... Qf6 {[%clk
0:01:30.9]} 26. Qf3 {[%clk 0:00:31.3]} 26... Qxf3 {[%clk 0:01:30.2]} 27. g3
{[%clk 0:00:32.2]} 27... d4 {[%clk 0:01:30.1]} 0-1

[Event "*** SCC Grand Prix: Titled Tuesday Blitz"]
[Site "Chess.com"]
[Date "2020.08.25"]
[Round "10"]
[White "Chernobay_Artem"]
[Black "AttackSparrow"]
[Result "1-0"]
[WhiteElo "2576"]
[BlackElo "2412"]
[TimeControl "180+1"]
[EndTime "11:57:45 PDT"]
[Termination "Chernobay_Artem won by resignation"]

1. d4 {[%clk 0:02:59]} 1... Nf6 {[%clk 0:02:59.8]} 2. c4 {[%clk 0:02:58]} 2...
c5 {[%clk 0:02:59.9]} 3. d5 {[%clk 0:02:57.7]} 3... b5 {[%clk 0:03:00.3]} 4.
cxb5 {[%clk 0:02:57.4]} 4... a6 {[%clk 0:03:00.8]} 5. bxa6 {[%clk 0:02:58]} 5...
g6 {[%clk 0:03:01.4]} 6. Nc3 {[%clk 0:02:57.6]} 6... Bg7 {[%clk 0:03:01.9]} 7.
e4 {[%clk 0:02:56.9]} 7... O-O {[%clk 0:03:02.2]} 8. e5 {[%clk 0:02:56.1]} 8...
Ne8 {[%clk 0:03:01.2]} 9. h4 {[%clk 0:02:56.1]} 9... Bxe5 {[%clk 0:02:59]} 10.
h5 {[%clk 0:02:49.4]} 10... Qa5 {[%clk 0:02:56.9]} 11. Nf3 {[%clk 0:02:39]}
11... Bg7 {[%clk 0:02:54.7]} 12. hxg6 {[%clk 0:02:19.5]} 12... fxg6 {[%clk
0:02:50.2]} 13. Bh6 {[%clk 0:02:17.6]} 13... Bxa6 {[%clk 0:02:40.2]} 14. Qd2
{[%clk 0:02:12.6]} 14... Bxf1 {[%clk 0:02:35.9]} 15. Kxf1 {[%clk 0:02:13.5]}
15... Qa6+ {[%clk 0:02:25.1]} 16. Kg1 {[%clk 0:02:12.5]} 16... Nf6 {[%clk
0:02:19.2]} 17. Bxg7 {[%clk 0:01:59.6]} 17... Kxg7 {[%clk 0:02:20.1]} 18. Re1
{[%clk 0:01:54.6]} 18... Qd6 {[%clk 0:02:08.7]} 19. Qh6+ {[%clk 0:01:49.9]}
19... Kg8 {[%clk 0:02:07.5]} 20. Ne4 {[%clk 0:01:33.2]} 20... Rf7 {[%clk
0:00:51.3]} 21. Nxd6 {[%clk 0:01:28]} 21... exd6 {[%clk 0:00:52.2]} 22. Ng5
{[%clk 0:01:26.5]} 22... Rg7 {[%clk 0:00:51.7]} 23. Nxh7 {[%clk 0:01:07.2]}
23... Nxh7 {[%clk 0:00:51.1]} 24. Re8+ {[%clk 0:01:06.6]} 24... Kf7 {[%clk
0:00:43.2]} 25. Re7+ {[%clk 0:01:06.5]} 1-0

[Event "*** SCC Grand Prix: Titled Tuesday Blitz"]
[Site "Chess.com"]
[Date "2020.08.25"]
[Round "10"]
[White "Noam_Vitenberg"]
[Black "x-0414717230"]
[Result "1-0"]
[WhiteElo "2532"]
[BlackElo "2702"]
[TimeControl "180+1"]
[EndTime "11:57:47 PDT"]
[Termination "Noam_Vitenberg won by resignation"]

1. d4 {[%clk 0:03:00.9]} 1... Nf6 {[%clk 0:03:00.1]} 2. c4 {[%clk 0:02:59.3]}
2... g6 {[%clk 0:03:00.6]} 3. Nc3 {[%clk 0:02:59.2]} 3... Bg7 {[%clk 0:03:00.5]}
4. e4 {[%clk 0:02:59]} 4... d6 {[%clk 0:03:01.1]} 5. Nf3 {[%clk 0:02:59.4]} 5...
O-O {[%clk 0:03:01.4]} 6. Be2 {[%clk 0:03:00.1]} 6... e5 {[%clk 0:03:02]} 7. Be3
{[%clk 0:03:00.7]} 7... Ng4 {[%clk 0:03:01.5]} 8. Bg5 {[%clk 0:03:00.9]} 8... f6
{[%clk 0:03:02.2]} 9. Bc1 {[%clk 0:03:01.4]} 9... Nh6 {[%clk 0:03:00.7]} 10. h4
{[%clk 0:02:58.7]} 10... Nc6 {[%clk 0:02:56.3]} 11. d5 {[%clk 0:02:58.8]} 11...
Ne7 {[%clk 0:02:56.5]} 12. h5 {[%clk 0:02:58.9]} 12... g5 {[%clk 0:02:55.2]} 13.
Nh2 {[%clk 0:02:58.9]} 13... c5 {[%clk 0:02:47.4]} 14. g4 {[%clk 0:02:57.8]}
14... a6 {[%clk 0:02:44.9]} 15. Nf1 {[%clk 0:02:56.6]} 15... Qd7 {[%clk
0:02:37.8]} 16. Ne3 {[%clk 0:02:52.9]} 16... Rb8 {[%clk 0:02:37.2]} 17. a4
{[%clk 0:02:47.4]} 17... Qc7 {[%clk 0:02:34.3]} 18. Bd2 {[%clk 0:02:42.8]} 18...
Bd7 {[%clk 0:02:34.6]} 19. a5 {[%clk 0:02:42]} 19... b5 {[%clk 0:02:34.5]} 20.
axb6 {[%clk 0:02:41.7]} 20... Rxb6 {[%clk 0:02:34.1]} 21. Qc2 {[%clk 0:02:37.2]}
21... Rfb8 {[%clk 0:02:34.2]} 22. Bc1 {[%clk 0:02:37.5]} 22... Qc8 {[%clk
0:02:30.9]} 23. f3 {[%clk 0:02:36.6]} 23... Nf7 {[%clk 0:02:26]} 24. O-O {[%clk
0:02:36.2]} 24... Bf8 {[%clk 0:02:14]} 25. Nf5 {[%clk 0:02:35.5]} 25... Nxf5
{[%clk 0:02:11.7]} 26. exf5 {[%clk 0:02:36.4]} 26... Be7 {[%clk 0:02:11.6]} 27.
Ne4 {[%clk 0:02:36]} 27... Nh6 {[%clk 0:02:11.7]} 28. Bd3 {[%clk 0:02:28.7]}
28... Kg7 {[%clk 0:02:12.2]} 29. Rf2 {[%clk 0:02:26.7]} 29... Ra8 {[%clk
0:02:03.8]} 30. Bd2 {[%clk 0:02:26.3]} 30... Rab8 {[%clk 0:02:01.2]} 31. Bc3
{[%clk 0:02:25.8]} 31... Bxf5 {[%clk 0:01:50.1]} 32. gxf5 {[%clk 0:02:21.3]}
32... Nxf5 {[%clk 0:01:50.7]} 33. Nxc5 {[%clk 0:02:17.1]} 33... Ne3 {[%clk
0:01:50.1]} 34. Ne6+ {[%clk 0:02:16]} 34... Qxe6 {[%clk 0:01:49.9]} 35. dxe6
{[%clk 0:02:15.9]} 35... Nxc2 {[%clk 0:01:50.2]} 36. Rxc2 {[%clk 0:02:11.8]}
36... h6 {[%clk 0:01:40]} 37. Kg2 {[%clk 0:02:11.6]} 37... Bd8 {[%clk
0:01:38.1]} 38. Ra2 {[%clk 0:02:07.5]} 38... Kf8 {[%clk 0:01:38.4]} 39. Ba5
{[%clk 0:02:04.1]} 39... Rc6 {[%clk 0:01:37.2]} 40. Bxd8 {[%clk 0:02:03.8]}
40... Rxd8 {[%clk 0:01:38.1]} 41. Be4 {[%clk 0:02:03.5]} 41... Rb6 {[%clk
0:01:38.4]} 42. Bd5 {[%clk 0:02:03.6]} 42... Ke7 {[%clk 0:01:37.7]} 43. b3
{[%clk 0:01:52]} 43... f5 {[%clk 0:01:35.8]} 44. c5 {[%clk 0:01:49.7]} 44...
dxc5 {[%clk 0:01:35.5]} 45. Rxc5 {[%clk 0:01:50.6]} 45... Kf6 {[%clk 0:01:04.3]}
46. Bc4 {[%clk 0:01:47.9]} 46... g4 {[%clk 0:00:59.1]} 47. fxg4 {[%clk
0:01:46.5]} 47... fxg4 {[%clk 0:01:00]} 48. Rf2+ {[%clk 0:01:45.6]} 48... Kg5
{[%clk 0:01:00.2]} 49. Rxe5+ {[%clk 0:01:45.3]} 49... Kh4 {[%clk 0:01:00.5]} 50.
e7 {[%clk 0:01:44.1]} 1-0

[Event "*** SCC Grand Prix: Titled Tuesday Blitz"]
[Site "Chess.com"]
[Date "2020.08.25"]
[Round "10"]
[White "Violord"]
[Black "ChristopherYoo"]
[Result "1-0"]
[WhiteElo "2673"]
[BlackElo "2811"]
[TimeControl "180+1"]
[EndTime "11:57:53 PDT"]
[Termination "Violord won on time"]

1. e4 {[%clk 0:02:59.1]} 1... c5 {[%clk 0:02:57.3]} 2. Nf3 {[%clk 0:02:58.4]}
2... d6 {[%clk 0:02:57.5]} 3. Bb5+ {[%clk 0:02:57.7]} 3... Nd7 {[%clk
0:02:57.3]} 4. O-O {[%clk 0:02:55.4]} 4... a6 {[%clk 0:02:57.3]} 5. Bxd7+ {[%clk
0:02:54.8]} 5... Bxd7 {[%clk 0:02:58.2]} 6. d4 {[%clk 0:02:54.3]} 6... cxd4
{[%clk 0:02:57.6]} 7. Qxd4 {[%clk 0:02:54.3]} 7... e5 {[%clk 0:02:47.9]} 8. Qd3
{[%clk 0:02:53.7]} 8... h6 {[%clk 0:02:43.6]} 9. a4 {[%clk 0:02:52.7]} 9... Nf6
{[%clk 0:02:21.3]} 10. a5 {[%clk 0:02:50.9]} 10... Bc6 {[%clk 0:02:14.6]} 11.
Re1 {[%clk 0:02:48.2]} 11... Be7 {[%clk 0:02:09.5]} 12. c4 {[%clk 0:02:47.4]}
12... b5 {[%clk 0:01:57.6]} 13. axb6 {[%clk 0:02:43.7]} 13... Qxb6 {[%clk
0:01:57.2]} 14. Nc3 {[%clk 0:02:43]} 14... O-O {[%clk 0:01:56.9]} 15. Nd2 {[%clk
0:02:30.4]} 15... Ng4 {[%clk 0:01:30.1]} 16. Re2 {[%clk 0:02:29.4]} 16... f5
{[%clk 0:01:03.4]} 17. Nd5 {[%clk 0:02:20.1]} 17... Bxd5 {[%clk 0:00:53.9]} 18.
Qxd5+ {[%clk 0:02:19.1]} 18... Kh8 {[%clk 0:00:54.2]} 19. exf5 {[%clk
0:02:18.6]} 19... Rae8 {[%clk 0:00:44.5]} 20. Ne4 {[%clk 0:02:15.3]} 20... Nf6
{[%clk 0:00:09.4]} 21. Nxf6 {[%clk 0:02:13.7]} 21... Rxf6 {[%clk 0:00:10.3]} 22.
Be3 {[%clk 0:02:13.3]} 22... Qb3 {[%clk 0:00:04.1]} 23. g4 {[%clk 0:02:10.9]}
23... h5 {[%clk 0:00:03.4]} 24. h3 {[%clk 0:02:07.3]} 24... hxg4 {[%clk
0:00:03.6]} 25. hxg4 {[%clk 0:02:07]} 25... g6 {[%clk 0:00:01.7]} 26. Kg2 {[%clk
0:02:05.5]} 26... gxf5 {[%clk 0:00:02]} 27. Rh1+ {[%clk 0:02:04.3]} 27... Kg7
{[%clk 0:00:02.6]} 28. gxf5 {[%clk 0:02:02.3]} 28... Rg8 {[%clk 0:00:02.2]} 29.
Kf1 {[%clk 0:01:53.7]} 29... Qa2 {[%clk 0:00:01.4]} 30. Rg1+ {[%clk 0:01:52.2]}
1-0

[Event "*** SCC Grand Prix: Titled Tuesday Blitz"]
[Site "Chess.com"]
[Date "2020.08.25"]
[Round "10"]
[White "NiranjanNavalgund"]
[Black "dosto07"]
[Result "1-0"]
[WhiteElo "2436"]
[BlackElo "2316"]
[TimeControl "180+1"]
[EndTime "11:57:53 PDT"]
[Termination "NiranjanNavalgund won by checkmate"]

1. e4 {[%clk 0:03:00.9]} 1... e5 {[%clk 0:02:56.2]} 2. Nf3 {[%clk 0:03:01.4]}
2... Nc6 {[%clk 0:02:56]} 3. Nc3 {[%clk 0:03:02.3]} 3... Nf6 {[%clk 0:02:54.6]}
4. Nxe5 {[%clk 0:03:03]} 4... Nxe5 {[%clk 0:02:53.1]} 5. d4 {[%clk 0:03:03.2]}
5... Nc6 {[%clk 0:02:36.6]} 6. e5 {[%clk 0:03:04.1]} 6... Bb4 {[%clk 0:02:33.5]}
7. exf6 {[%clk 0:02:56.3]} 7... Qxf6 {[%clk 0:02:33.3]} 8. a3 {[%clk 0:02:55.6]}
8... Bxc3+ {[%clk 0:02:21.7]} 9. bxc3 {[%clk 0:02:56.5]} 9... O-O {[%clk
0:02:21.9]} 10. Be2 {[%clk 0:02:56.7]} 10... d5 {[%clk 0:02:18.6]} 11. O-O
{[%clk 0:02:56]} 11... Bf5 {[%clk 0:02:17.5]} 12. Rb1 {[%clk 0:02:56.2]} 12...
b6 {[%clk 0:02:13.6]} 13. Bf3 {[%clk 0:02:54.9]} 13... Qg6 {[%clk 0:02:08.6]}
14. Rb2 {[%clk 0:02:52.2]} 14... Rad8 {[%clk 0:02:02]} 15. Bf4 {[%clk
0:02:50.7]} 15... Rd7 {[%clk 0:01:54]} 16. Qd2 {[%clk 0:02:48.6]} 16... Na5
{[%clk 0:01:52.9]} 17. Qc1 {[%clk 0:02:46.6]} 17... Nc4 {[%clk 0:01:52.2]} 18.
Ra2 {[%clk 0:02:47]} 18... Be4 {[%clk 0:01:39.9]} 19. Bxe4 {[%clk 0:02:45.6]}
19... dxe4 {[%clk 0:01:36.9]} 20. Re1 {[%clk 0:02:44.8]} 20... Re8 {[%clk
0:01:33.3]} 21. Ra1 {[%clk 0:02:38.7]} 21... h6 {[%clk 0:01:28.6]} 22. Rb1
{[%clk 0:02:39]} 22... Qc6 {[%clk 0:01:14.2]} 23. a4 {[%clk 0:02:36.6]} 23... a5
{[%clk 0:01:13.4]} 24. Rb5 {[%clk 0:02:36.6]} 24... Rd5 {[%clk 0:01:09.3]} 25.
f3 {[%clk 0:02:29.5]} 25... Rxb5 {[%clk 0:01:02.4]} 26. axb5 {[%clk 0:02:30.4]}
26... Qxb5 {[%clk 0:00:56.8]} 27. fxe4 {[%clk 0:02:30.8]} 27... c6 {[%clk
0:00:47.2]} 28. e5 {[%clk 0:02:29.7]} 28... a4 {[%clk 0:00:44.7]} 29. Bxh6
{[%clk 0:02:29.5]} 29... gxh6 {[%clk 0:00:36.6]} 30. Qxh6 {[%clk 0:02:30.4]}
30... Re6 {[%clk 0:00:36.7]} 31. Qg5+ {[%clk 0:02:30.6]} 31... Rg6 {[%clk
0:00:29.9]} 32. Qd8+ {[%clk 0:02:31.5]} 32... Kg7 {[%clk 0:00:29.9]} 33. e6
{[%clk 0:02:30.1]} 33... Rxe6 {[%clk 0:00:25.2]} 34. Rxe6 {[%clk 0:02:29.1]}
34... Qb1+ {[%clk 0:00:20.4]} 35. Kf2 {[%clk 0:02:28.8]} 35... fxe6 {[%clk
0:00:19]} 36. Qe7+ {[%clk 0:02:28.6]} 36... Kh8 {[%clk 0:00:18]} 37. Qf6+ {[%clk
0:02:27.8]} 37... Kh7 {[%clk 0:00:17.6]} 38. Qf7+ {[%clk 0:02:28]} 38... Kh8
{[%clk 0:00:17.5]} 39. Qe8+ {[%clk 0:02:24.7]} 39... Kh7 {[%clk 0:00:17.4]} 40.
Qd7+ {[%clk 0:02:24.9]} 40... Kh8 {[%clk 0:00:16.1]} 41. Qd8+ {[%clk 0:02:24.5]}
41... Kg7 {[%clk 0:00:15.9]} 42. Qg5+ {[%clk 0:02:24.6]} 42... Kf7 {[%clk
0:00:15]} 43. Qf4+ {[%clk 0:02:24.5]} 43... Ke7 {[%clk 0:00:13.4]} 44. Qc7+
{[%clk 0:02:24.7]} 44... Kf6 {[%clk 0:00:13.3]} 45. Qd8+ {[%clk 0:02:24.1]}
45... Kf5 {[%clk 0:00:12.4]} 46. Qf8+ {[%clk 0:02:23.5]} 46... Ke4 {[%clk
0:00:11.2]} 47. Qf3# {[%clk 0:02:23.2]} 1-0

[Event "*** SCC Grand Prix: Titled Tuesday Blitz"]
[Site "Chess.com"]
[Date "2020.08.25"]
[Round "10"]
[White "rasmussvane"]
[Black "Reader777"]
[Result "1-0"]
[WhiteElo "2849"]
[BlackElo "2672"]
[TimeControl "180+1"]
[EndTime "11:58:07 PDT"]
[Termination "rasmussvane won by resignation"]

1. Nf3 {[%clk 0:03:00.9]} 1... c5 {[%clk 0:02:59.3]} 2. c4 {[%clk 0:03:00.9]}
2... Nc6 {[%clk 0:02:56.9]} 3. Nc3 {[%clk 0:03:01.1]} 3... e6 {[%clk 0:02:55.9]}
4. g3 {[%clk 0:03:00.7]} 4... d5 {[%clk 0:02:55]} 5. cxd5 {[%clk 0:03:01.6]}
5... exd5 {[%clk 0:02:54.8]} 6. d4 {[%clk 0:03:02.5]} 6... Nf6 {[%clk
0:02:54.5]} 7. Bg2 {[%clk 0:03:02.3]} 7... Be7 {[%clk 0:02:51.9]} 8. O-O {[%clk
0:03:02.4]} 8... O-O {[%clk 0:02:51.7]} 9. b3 {[%clk 0:03:01.4]} 9... b6 {[%clk
0:02:47.5]} 10. Bb2 {[%clk 0:03:01.1]} 10... Be6 {[%clk 0:02:46.6]} 11. Rc1
{[%clk 0:03:01.2]} 11... Rc8 {[%clk 0:02:45.6]} 12. e3 {[%clk 0:03:01.5]} 12...
h6 {[%clk 0:02:44.5]} 13. Ne2 {[%clk 0:03:01.7]} 13... Qd7 {[%clk 0:02:38.2]}
14. Nf4 {[%clk 0:03:00.9]} 14... Bg4 {[%clk 0:02:19.1]} 15. dxc5 {[%clk
0:02:39.6]} 15... bxc5 {[%clk 0:02:17.6]} 16. h3 {[%clk 0:02:39.9]} 16... Bxf3
{[%clk 0:02:01.4]} 17. Qxf3 {[%clk 0:02:40.8]} 17... d4 {[%clk 0:02:00.9]} 18.
Rfd1 {[%clk 0:02:38.2]} 18... Rfd8 {[%clk 0:01:57]} 19. Qe2 {[%clk 0:02:27.2]}
19... Bd6 {[%clk 0:01:41.6]} 20. Nd3 {[%clk 0:02:24.5]} 20... Qe7 {[%clk
0:01:36.3]} 21. Re1 {[%clk 0:02:20.3]} 21... Re8 {[%clk 0:01:30.9]} 22. Bxc6
{[%clk 0:02:20.1]} 22... Rxc6 {[%clk 0:01:30]} 23. Qf3 {[%clk 0:02:20.6]} 23...
Qd7 {[%clk 0:01:23.3]} 24. exd4 {[%clk 0:02:19.1]} 24... Rxe1+ {[%clk
0:01:22.1]} 25. Rxe1 {[%clk 0:02:20]} 25... cxd4 {[%clk 0:01:20.9]} 26. Bxd4
{[%clk 0:02:20.7]} 26... Bxg3 {[%clk 0:01:11.4]} 27. Bxf6 {[%clk 0:02:11.3]}
27... Rxf6 {[%clk 0:01:10.6]} 28. Qa8+ {[%clk 0:02:09.2]} 28... Kh7 {[%clk
0:01:09.9]} 29. Qe4+ {[%clk 0:02:08.6]} 29... Rg6 {[%clk 0:00:46.7]} 30. fxg3
{[%clk 0:02:07.9]} 30... Qxh3 {[%clk 0:00:47.4]} 31. Re3 {[%clk 0:02:04.8]}
31... f5 {[%clk 0:00:44.3]} 32. Qf3 {[%clk 0:01:46.9]} 32... Qh4 {[%clk
0:00:36.7]} 33. Qxf5 {[%clk 0:01:41]} 33... Qd4 {[%clk 0:00:35.5]} 34. Kf2
{[%clk 0:01:37.8]} 34... Qb6 {[%clk 0:00:27]} 35. Nf4 {[%clk 0:01:36]} 1-0